[Event "57th Biel Festival MTO 2024"]
[White "Douguet,Claude"]
[Black "Arbinger,Roland"]
[Site "Biel"]
[Round "5.64"]
[Annotator "RC"]
[Result "1/2-1/2"]
[Date "2024.07.19"]
[WhiteElo "1994"]
[BlackElo "2013"]
[PlyCount "125"]
[TimeControl "60"]

1. c4 {[%emt 0:0:8]} Nf6 {[%emt 0:1:44]} 2. b3 {[%emt 0:0:7]} g6 {[%emt 0:1:47]} 3. Bb2 {[%emt 0:0:5]} Bg7 {[%emt 0:0:6]} 4. Nf3 {[%emt 0:0:7]} O-O {[%emt 0:0:13]} 5. g3 {[%emt 0:0:6]} d6 {[%emt 0:1:20]} 6. Bg2 {[%emt 0:0:6]} Nc6 {[%emt 0:1:56]} 7. O-O {[%emt 0:0:7]} e5 {[%emt 0:1:38]} 8. Nc3 {[%emt 0:0:7]} Re8 {[%emt 0:1:28]} 9. d3 {[%emt 0:1:31]} Bd7 {[%emt 0:3:31]} 10. Qd2 {[%emt 0:1:3]} Qc8 {[%emt 0:2:42]} 11. Rfd1 {[%emt 0:0:24]} a6 {[%emt 0:2:57]} 12. Rac1 {[%emt 0:0:28]} Bh3 {[%emt 0:2:12]} 13. Bh1 {[%emt 0:1:0]} Bg4 {[%emt 0:0:34]} 14. a3 {[%emt 0:4:17]} Qd7 {[%emt 0:9:49]} 15. Re1 {[%emt 0:15:43]} Bxf3 {[%emt 0:17:5]} 16. exf3 {[%emt 0:4:0]} Nd4 {[%emt 0:0:20]} 17. Qd1 {[%emt 0:0:19]} c6 {[%emt 0:2:44]} 18. Ne2 {[%emt 0:6:8]} c5 {[%emt 0:4:16]} 19. Nxd4 {[%emt 0:2:5]} cxd4 {[%emt 0:0:22]} 20. Rc2 {[%emt 0:10:33]} Nh5 {[%emt 0:2:55]} 21. Rce2 {[%emt 0:10:48]} Kf8 {[%emt 0:15:3]} 22. f4 {[%emt 0:6:46]} exf4 {[%emt 0:1:38]} 23. Rxe8+ {[%emt 0:0:15]} Rxe8 {[%emt 0:0:6]} 24. Rxe8+ {[%emt 0:0:18]} Kxe8 {[%emt 0:0:21]} 25. Qe2+ {[%emt 0:0:24]} Kf8 {[%emt 0:0:30]} 26. Qe4 {[%emt 0:4:17]} fxg3 {[%emt 0:3:12]} 27. hxg3 {[%emt 0:1:45]} b5 {[%emt 0:0:46]} 28. Qa8+ {[%emt 0:2:39]} Ke7 {[%emt 0:1:17]} 29. Qxa6 {[%emt 0:1:21]} bxc4 {[%emt 0:0:7]} 30. Qxc4 {[%emt 0:2:6]} Be5 {[%emt 0:8:29]} 31. Bxd4 {[%emt 0:13:10]} Qg4 {[%emt 0:1:40]} 32. Bxe5 {[%emt 0:5:4]} Qd1+ {[%emt 0:2:48]} 33. Kh2 {[%emt 0:0:26]} dxe5 {[%emt 0:0:11]} 34. Qc5+ {[%emt 0:2:24]} Kf6 {[%emt 0:3:15]} 35. Qd6+ {[%emt 0:2:38]} Kg7 {[%emt 0:0:49]} 36. Qxe5+ {[%emt 0:1:5]} Nf6 {[%emt 0:0:1]} 37. Bd5 {[%emt 0:7:19]} Qxd3 {[%emt 0:4:7]} 38. Bc4 {[%emt 0:1:18]} Qf3 {[%emt 0:0:30]} 39. Qd4 {[%emt 0:1:5]} h5 {[%emt 0:5:20]} 40. Kg1 {[%emt 0:4:6]} Kg8 {[%emt 0:5:29]} 41. Qd3 {[%emt 0:7:14]} Qg4 {[%emt 0:1:56]} 42. Qd8+ {[%emt 0:6:46]} Kg7 {[%emt 0:0:34]} 43. Qe7 {[%emt 0:5:7]} Qd1+ {[%emt 0:0:17]} 44. Kg2 {[%emt 0:0:13]} Nd5 {[%emt 0:0:44]} 45. Qe5+ {[%emt 0:3:14]} Nf6 {[%emt 0:0:2]} 46. a4 {[%emt 0:3:8]} h4 {[%emt 0:0:11]} 47. gxh4 {[%emt 0:5:56]} Qg4+ {[%emt 0:0:10]} 48. Qg3 {[%emt 0:0:57]} Qe4+ {[%emt 0:0:11]} 49. f3 {[%emt 0:0:19]} Qd4 {[%emt 0:1:20]} 50. Qf2 {[%emt 0:0:34]} Qa1 {[%emt 0:0:14]} 51. Qa7 {[%emt 0:1:41]} Qb2+ {[%emt 0:1:15]} 52. Kh3 {[%emt 0:0:45]} Qc3 {[%emt 0:4:42]} 53. Qxf7+ {[%emt 0:1:36]} Kh8 {[%emt 0:1:31]} 54. Qf8+ {[%emt 0:0:30]} Kh7 {[%emt 0:0:30]} 55. Qe7+ {[%emt 0:3:24]} Kh8 {[%emt 0:0:12]} 56. Qd8+ {[%emt 0:0:19]} Kg7 {[%emt 0:0:14]} 57. Qc7+ {[%emt 0:1:40]} Kh8 {[%emt 0:0:29]} 58. Qf4 {[%emt 0:0:38]} Kg7 {[%emt 0:0:40]} 59. Be6 {[%emt 0:2:36]} Qe1 {[%emt 0:0:35]} 60. Qc7+ {[%emt 0:6:28]} Kh6 {[%emt 0:1:9]} 61. Bg4 {[%emt 0:21:42]} Qf1+ {[%emt 0:15:21]} 62. Kg3 {[%emt 0:0:15]} Qg1+ {[%emt 0:0:29]} 63. Kh3 {[%emt 0:0:8]} 1/2-1/2

[Event "57th Biel Festival MTO 2024"]
[White "Mendonca,Leon Luke"]
[Black "Moiseenko,Alexander"]
[Site "Biel"]
[Round "6.1"]
[Annotator "TA"]
[Result "1-0"]
[Date "2024.07.20"]
[WhiteElo "2634"]
[BlackElo "2560"]
[PlyCount "59"]
[TimeControl "60"]

{[%evp 19,59,0,0,0,18,-2,-6,0,0,0,0,-6,0,-25,4,-6,6,-16,20,35,16,0,0,6,29,0,427,422,601,574,700,706,586,300,1225,1189,29986,29987,29987,29988,29988,4887]} 1. e4 {[%emt 0:0:56]} c5 {[%emt 0:0:49]} 2. Nf3 {[%emt 0:3:47]} Nc6 {[%emt 0:0:6]} 3. d4 {[%emt 0:0:6]} cxd4 {[%emt 0:0:5]} 4. Nxd4 {[%emt 0:0:6]} Nf6 {[%emt 0:0:43]} 5. Nc3 {[%emt 0:0:6]} e5 {[%emt 0:0:3]} 6. Ndb5 {[%emt 0:0:11]} d6 {[%emt 0:0:5]} 7. Nd5 {[%emt 0:0:25]} Nxd5 {[%emt 0:0:5]} 8. exd5 {[%emt 0:0:5]} Nb8 {[%emt 0:0:4]} 9. a4 {[%emt 0:0:20]} Be7 {[%emt 0:0:13]} 10. Be2 {[%emt 0:0:33]} O-O {[%emt 0:0:50]} 11. O-O {[%emt 0:0:31]} Nd7 {[%emt 0:0:29]} 12. b4 {[%emt 0:0:59]} a6 {[%emt 0:1:32]} 13. Na3 {[%emt 0:0:39] The position is equal.} b6 {[%emt 0:1:47]} 14. Kh1 {[%emt 0:1:5]} f5 {[%emt 0:10:42]} 15. f4 {[%emt 0:3:27]} Bb7 {[%emt 0:8:35]} 16. Nc4 {[%emt 0:5:40]} Qc7 {[%emt 0:4:32]} 17. Ra3 {[%emt 0:7:29]} a5 {[%emt 0:1:13]} 18. b5 {[%emt 0:5:30]} Rad8 {[%emt 0:4:6]} 19. fxe5 {[%emt 0:24:4]} Nxe5 {[%emt 0:0:34]} 20. Rc3 {[%emt 0:5:1]} Nd7 $1 {[%emt 0:13:37]} 21. Rg3 {[%emt 0:4:5] White wants to play Bd3.} Nc5 {[%emt 0:6:22][%cal Ob7c8]} 22. Bd3 {[%emt 0:12:39][%cal Be2d3,Bd3e4,Be4f5,Bf5e6][%mdl 32] [#] Black must now prevent Bh6.} (22. Bh6 $5 g6 23. Bd3 Bxd5 24. Bxf8 (24. Rxf5 Rxf5 25. Bxf5 Bf7 $11 )Rxf8 25. Ne3 $16 (25. Rxf5 Rxf5 26. Bxf5 Bxc4 $11 ))Ne4 $2 {[%emt 0:24:9][%mdl 8192]} (22... Bc8 $1 $11 {and Black stays safe.} )23. Bxe4 $18 {[%emt 0:2:30]} Qxc4 {[%emt 0:1:24]} (23... Bh4 $142 24. Bd3 Bxg3 25. hxg3 Bxd5 )24. Bxf5 {[%emt 0:1:38]} Bf6 {[%emt 0:9:55]} 25. Be6+ {[%emt 0:12:17]} Kh8 {[%emt 0:0:5]} 26. Rgf3 {[%emt 0:2:8]} Qxa4 $2 {[%emt 0:4:59] [#]} (26... Bc8 27. Be3 (27. Rf4 Qc3 $18 )Rde8 )27. Bb2 $1 {[%emt 0:1:44][%cal Rf3f6][%mdl 512] Rxf6 is the strong threat.} Qxb5 {[%emt 0:0:56]} (27... Qh4 28. Qa1 )28. Bxf6 {[%emt 0:3:38] White mates.} Rxf6 {[%emt 0:0:18]} 29. Rxf6 {[%emt 0:0:5]} gxf6 {[%emt 0:0:3]} 30. Qa1 {[%emt 0:0:7] Weighted Error Value: White=0.28 (precise) /Black=0.84.  Loses game:     	---       	Black=1      Mistake:       	---       	Black=1      Inaccurate:     	White=1     	Black=3      OK:         	White=6     	Black=3      Best:        	White=2     	Black=1      Strong:       	---       	Black=1} (30. Rxf6 $142 Qb2 31. Qf1 Bxd5 32. Rf8+ Kg7 33. Qf7+ (33. Rxd8 Bxe6 34. Rxd6 Bf5 $18 )(33. Rf7+ Kh8 34. Rf8+ Kg7 35. Qf7+ Kh6 36. Qf4+ Kg6 37. Qf5+ Kh6 38. Rf6+ Qxf6 )Kh6 34. Qf4+ (34. Rxd8 $2 {gets mated.} Qc1+ )Kg6 35. Qg4+ (35. Bxd5 Rxf8 36. Qg4+ Kf6 $11 )(35. Qf5+ Kh6 36. Rf6+ Qxf6 37. Qxf6+ Kh5 38. Bxd5 Rg8 39. Bf3+ Rg4 40. h3 h6 41. hxg4# )Kh6 36. Qh4+ (36. Rxd8 $2 Qc1+ )Kg6 37. Bf5+ (37. Rxd8 $2 Qc1+ )Kg7 38. Qe7+ (38. Qxd8 $2 Qc1# )Kh6 39. Qxh7+ (39. Qxd8 $2 Qc1# )Kg5 40. Qg6+ Kh4 41. Qh6# )1-0

[Event "57th Biel Festival MTO 2024"]
[White "Sokolovsky,Yahli"]
[Black "Aryan Chopra"]
[Site "Biel"]
[Round "6.2"]
[Annotator "TA"]
[Result "0-1"]
[Date "2024.07.20"]
[WhiteElo "2492"]
[BlackElo "2631"]
[PlyCount "78"]
[TimeControl "60"]

{[%evp 11,78,-10,-13,-33,-27,-31,-26,-62,-19,-20,-16,-23,0,0,0,0,7,0,0,7,4,0,0,-40,-50,-54,-4,-164,-143,-177,-180,-167,-180,-183,-175,-173,-179,-172,-179,-216,-225,-210,-218,-232,-213,-215,-202,-245,-245,-341,-268,-273,-258,-318,-258,-312,-294,-339,-355,-462,-477,-922,-920,-29993,-29994,-29994,-29995,-29995,-29996]} 1. e4 {[%emt 0:0:4]} e6 {[%emt 0:0:3]} 2. d4 {[%emt 0:0:8]} d5 {[%emt 0:0:4]} 3. e5 {[%emt 0:0:37]} c5 {[%emt 0:0:6]} 4. c3 {[%emt 0:0:3]} Nc6 {[%emt 0:0:4]} 5. Nf3 {[%emt 0:0:5]} Qb6 {[%emt 0:0:4]} 6. Bd3 {[%emt 0:1:26]} cxd4 {[%emt 0:0:25]} 7. O-O {[%emt 0:0:15]} Bd7 {[%emt 0:0:17]} 8. Re1 {[%emt 0:0:17]} Nge7 {[%emt 0:1:11]} 9. h4 {[%emt 0:0:15] Black has an edge.} a6 {[%emt 0:0:38]} 10. Nbd2 {[%emt 0:2:13][%cal Bb1d2,Bd2b3,Bb3d4][%mdl 32]} dxc3 {[%emt 0:0:36]} 11. bxc3 {[%emt 0:0:6]} Ng6 {[%emt 0:0:19]} 12. Nb3 {[%emt 0:3:37]} Qc7 {[%emt 0:0:30]} 13. Qe2 {[%emt 0:0:45]} f6 {[%emt 0:1:35]} 14. exf6 {[%emt 0:1:14]} gxf6 {[%emt 0:0:6]} 15. Rb1 {[%emt 0:2:59]} Bd6 {[%emt 0:4:48]} 16. Nbd4 {[%emt 0:9:12]} Nce5 {[%emt 0:3:57]} 17. Bh6 {[%emt 0:27:47][%cal Oc3c4]} Nxd3 {[%emt 0:21:47]} (17... Qxc3 $6 18. Rb3 Qc7 19. h5 $16 )18. Qxd3 {[%emt 0:1:20]} Ne5 {[%emt 0:1:53]} (18... e5 $15 19. Nf5 O-O-O )19. Nxe5 $2 {[%emt 0:13:30] This move loses the game for White.} (19. Qe2 $11 {and White has nothing to worry.} Rg8 (19... Qxc3 $2 20. Nxe5 Bxe5 21. Qh5+ Ke7 22. Nf3 $18 )20. Nxe5 Bxe5 (20... fxe5 21. Qh5+ Rg6 22. Bf4 $14 )21. Qh5+ Ke7 22. Bc1 )fxe5 $19 {[%emt 0:0:27]} 20. Bg5 {[%emt 0:4:15][%cal Od3h3]} O-O {[%emt 0:12:52]} 21. Nc2 {[%emt 0:15:25][%cal Oc3c4]} e4 $1 {[%emt 0:13:32]} 22. Qd2 {[%emt 0:1:11]} b5 {[%emt 0:0:18]} 23. Ne3 {[%emt 0:1:57]} Bh2+ {[%emt 0:1:0]} 24. Kh1 {[%emt 0:1:20] Threatens to win with g3.} Bf4 {[%emt 0:4:23]} 25. g3 {[%emt 0:1:16]} Be5 {[%emt 0:1:11]} 26. Ng4 {[%emt 0:2:51] [#]} Bg7 $1 {[%emt 0:4:37][%cal Oh7h5]} (26... Qxc3 27. Nxe5 Qxe5 28. Bf4 $17 )(26... Bxc3 27. Rec1 Rac8 28. Qd1 $15 )27. Rbc1 {[%emt 0:4:17]} Be8 {[%emt 0:7:13]} 28. Bf4 {[%emt 0:1:14]} Qe7 {[%emt 0:0:53]} 29. Bg5 {[%emt 0:5:31]} Qb7 {[%emt 0:1:47]} 30. Be3 {[%emt 0:4:4]} Bh5 {[%emt 0:7:6]} 31. Nh2 {[%emt 0:0:5] White is weak on the light squares} Qf7 {[%emt 0:0:41]} 32. Kg1 {[%emt 0:2:8]} Qf5 {[%emt 0:0:41]} 33. Kg2 {[%emt 0:1:24] Repels Qh3+} Rf7 {[%emt 0:2:33]} 34. a4 {[%emt 0:0:56]} bxa4 {[%emt 0:1:31]} 35. Qa2 {[%emt 0:1:14]} Rc8 {[%emt 0:1:7]} 36. Qxa4 {[%emt 0:0:22]} (36. Bd4 $142 e5 37. Be3 )Rc4 {[%emt 0:0:24]} ({Not} 36... Rxc3 37. Rxc3 Bxc3 38. Rc1 $17 )(36... Bxc3 $2 37. Qxa6 Rfc7 38. Rg1 $19 )37. Qxa6 {[%emt 0:1:25]} Bf3+ {[%emt 0:0:24] Black mates.} (37... Rxc3 $2 38. Rxc3 Bxc3 39. Qc8+ Rf8 40. Qxc3 $18 )38. Nxf3 {[%emt 0:1:23]} exf3+ {[%emt 0:0:5]} 39. Kh2 {[%emt 0:0:13] [#]} Rxh4+ $3 {[%emt 0:0:18][%mdl 512] Weighted Error Value: White=0.63/Black=0.10 (very precise) .  Mistake:       	White=2     	Black=1      Inaccurate:     	White=5     	Black=2      OK:         	White=10    	Black=17} 0-1

[Event "57th Biel Festival MTO 2024"]
[White "Sasikiran,Krishnan"]
[Black "Jumabayev,Rinat"]
[Site "Biel"]
[Round "6.3"]
[Annotator "TA"]
[Result "1/2-1/2"]
[Date "2024.07.20"]
[WhiteElo "2581"]
[BlackElo "2575"]
[PlyCount "30"]
[TimeControl "60"]

{[%evp 9,30,-6,5,-18,-12,-31,-12,-8,0,0,-8,0,0,-7,-13,-14,0,0,0,0,0,-3,0]} 1. d4 {[%emt 0:0:49]} Nf6 {[%emt 0:2:59]} 2. c4 {[%emt 0:0:12]} e6 {[%emt 0:0:56]} 3. Nc3 {[%emt 0:0:17]} Bb4 {[%emt 0:0:58]} 4. a3 {[%emt 0:0:24]} Bxc3+ {[%emt 0:0:7]} 5. bxc3 {[%emt 0:0:5]} Nc6 {[%emt 0:2:3][%cal Bb8c6,Bc6a5,Ba5b3,Bb3c1][%mdl 32]} 6. f3 {[%emt 0:2:44][%cal Bf2f3,Bf3f4][%mdl 32]} b6 {[%emt 0:0:40]} 7. e4 {[%emt 0:1:54]} d6 {[%emt 0:0:20]} 8. Bd3 {[%emt 0:17:13] The position is equal.} Na5 {[%emt 0:1:6]} 9. f4 {[%emt 0:2:34]} Bb7 {[%emt 0:23:35]} 10. Qe2 {[%emt 0:5:47]} Nb3 {[%emt 0:1:53]} 11. Rb1 {[%emt 0:0:47]} Nxc1 {[%emt 0:0:11]} 12. Rxc1 {[%emt 0:0:2] [#]} e5 $1 {[%emt 0:5:39]} 13. fxe5 {[%emt 0:9:50]} dxe5 {[%emt 0:0:6]} 14. Nf3 {[%emt 0:0:21]} Nd7 {[%emt 0:2:15]} 15. O-O {[%emt 0:1:27]} ({But not} 15. Nxe5 Nxe5 16. dxe5 Qg5 $17 )Qe7 {[%emt 0:8:8] An uneventful encounter.   Weighted Error Value: White=0.03 (flawless) /Black=0.03 (flawless) .  OK:         	White=8     	Black=5} 1/2-1/2

[Event "57th Biel Festival MTO 2024"]
[White "Harsha Bharathakoti"]
[Black "Madaminov,Mukhiddin"]
[Site "Biel"]
[Round "6.4"]
[Annotator "TA"]
[Result "1/2-1/2"]
[Date "2024.07.20"]
[WhiteElo "2569"]
[BlackElo "2517"]
[PlyCount "99"]
[TimeControl "60"]

{[%evp 11,99,30,28,24,39,-10,38,33,38,22,24,8,0,5,14,10,43,30,33,29,66,0,0,0,99,-25,-29,-20,-2,-13,0,-2,0,0,0,0,0,0,0,-17,-14,-26,-24,-28,-30,-50,-39,-36,-20,-21,-23,-61,-79,-62,-67,-116,-58,-83,0,-2,0,-5,0,-17,-7,-12,-12,-33,0,0,0,0,0,-27,-26,-26,-20,-17,-13,-13,-13,-13,-13,-13,-13,-13,-13,-13,-13,-13]} 1. d4 {[%emt 0:4:24]} Nf6 {[%emt 0:0:24]} 2. c4 {[%emt 0:0:32]} e6 {[%emt 0:0:46][%cal Be7e6,Be6d5][%mdl 32]} 3. Nf3 {[%emt 0:1:54]} d5 {[%emt 0:0:38]} 4. Nc3 {[%emt 0:0:27]} c5 {[%emt 0:0:28]} 5. cxd5 {[%emt 0:0:35]} cxd4 {[%emt 0:0:34]} 6. Qxd4 {[%emt 0:1:44]} exd5 {[%emt 0:0:11]} 7. e4 {[%emt 0:12:6]} dxe4 {[%emt 0:0:32]} 8. Qxd8+ {[%emt 0:0:21]} Kxd8 {[%emt 0:0:9]} 9. Ng5 {[%emt 0:0:6][%csl LRe4,LRf7] White is slightly better.} Be6 {[%emt 0:0:8][%cal Bc8e6,Be6d5,Bd5c6][%mdl 32]} 10. a3 {[%emt 0:1:3][%cal Og2g3] Repels Bb4} Nbd7 {[%emt 0:5:3]} 11. Ncxe4 {[%emt 0:16:3]} Nxe4 {[%emt 0:12:58]} 12. Nxe4 {[%emt 0:0:7]} Rc8 {[%emt 0:5:21]} 13. Be3 {[%emt 0:10:35]} a6 {[%emt 0:5:41]} 14. Be2 {[%emt 0:13:12]} Bd5 {[%emt 0:32:38]} 15. Bf3 {[%emt 0:28:20]} Bc6 {[%emt 0:2:50]} 16. O-O {[%emt 0:5:12]} ({White should try} 16. Rd1 $14 )Ne5 $11 {[%emt 0:16:13]} 17. Bb6+ {[%emt 0:8:38]} Kd7 {[%emt 0:0:0] [#]} (17... Ke8 18. Rfe1 Be7 (18... Nxf3+ 19. gxf3 Bxe4 20. Rxe4+ Kd7 21. Rd1+ Bd6 22. Bd4 $14 )19. Bg4 $16 )(17... Ke7 $11 {remains equal.} )18. Rfe1 {[%emt 0:3:39]} (18. Rad1+ $1 $16 Ke6 19. Ng5+ Kf6 20. Be2 )Nxf3+ {[%emt 0:0:0]} 19. gxf3 {[%emt 0:0:3] Rad1+ would now be deadly.} Bxe4 {[%emt 0:0:0]} 20. Rxe4 {[%emt 0:0:27]} Bd6 {[%emt 0:0:0]} 21. Rd1 {[%emt 0:0:25]} Rhe8 {[%emt 0:0:0]} 22. Rh4 {[%emt 0:0:55]} h6 {[%emt 0:0:0]} 23. Bd4 {[%emt 0:0:38]} f6 {[%emt 0:0:0]} 24. Bc3 {[%emt 0:0:31]} Rc6 {[%emt 0:0:0]} 25. Rg4 {[%emt 0:0:17]} Re7 {[%emt 0:0:0]} 26. h3 {[%emt 0:0:43]} Ke8 {[%emt 0:0:0][%cal Od6a3]} 27. Rd3 {[%emt 0:0:21]} Kf7 {[%emt 0:0:0]} 28. Re4 {[%emt 0:0:11]} h5 {[%emt 0:0:0]} 29. Kf1 {[%emt 0:0:39]} Bc7 {[%emt 0:0:26]} 30. Rd5 {[%emt 0:0:23]} g6 {[%emt 0:1:26]} 31. Bb4 {[%emt 0:0:55]} Rxe4 {[%emt 0:1:35]} 32. fxe4 $15 {[%emt 0:0:3][%mdl 4096] Endgame. KRB-KRB} Ke6 $1 {[%emt 0:0:4] Prevents Rd7.} 33. Rd2 {[%emt 0:0:58]} (33. Kg2 $15 {deserves consideration.} )a5 {[%emt 0:0:58]} (33... g5 $17 34. Kg2 Be5 )34. Bc3 {[%emt 0:0:15]} Be5 {[%emt 0:0:14]} ({Black should play} 34... Rc4 $17 35. f3 Rc5 )35. Bxa5 $11 {[%emt 0:0:42]} Rc1+ {[%emt 0:2:21]} 36. Ke2 {[%emt 0:0:32]} g5 {[%emt 0:1:46]} 37. Bb4 {[%emt 0:0:33]} h4 {[%emt 0:2:35][%mdl 1024] Black has compensation.} 38. Kf3 {[%emt 0:0:29]} Rg1 {[%emt 0:0:28][%cal Og5g4] [#] Strongly threatening ...g4+!} 39. Ke2 {[%emt 0:0:28]} g4 {[%emt 0:5:20]} 40. Rd3 {[%emt 0:0:5]} Rh1 {[%emt 0:0:8]} 41. hxg4 {[%emt 0:2:4]} h3 {[%emt 0:17:54][%cal Oe5c7]} 42. Bd2 {[%emt 0:11:47]} h2 {[%emt 0:1:43]} 43. Rh3 $1 {[%emt 0:0:5]} Rg1 {[%emt 0:1:4]} ({Reject} 43... Bxb2 44. Bf4 $14 )44. f4 {[%emt 0:0:3] The position is equal.} h1=Q {[%emt 0:0:46]} ({Not} 44... h1=B 45. fxe5 Bxe4 46. exf6 $16 )45. Rxh1 {[%emt 0:0:3]} Rxh1 {[%emt 0:0:5]} 46. fxe5 {[%emt 0:0:4]} Kxe5 {[%emt 0:0:25]} 47. Bc3+ {[%emt 0:4:27]} Kxe4 {[%emt 0:0:5]} 48. Bxf6 {[%emt 0:0:4]} Rh2+ {[%emt 0:0:6]} 49. Kd1 {[%emt 0:1:9]} Kd3 {[%emt 0:1:20][%cal Rh2h1]} 50. Ke1 $1 {[%emt 0:0:4] Weighted Error Value: White=0.14 (very precise) /Black=0.13 (very precise) .  Mistake:       	White=3     	Black=3      Inaccurate:     	White=2     	Black=4      OK:         	White=15    	Black=17     Best:        	White=4     	Black=2      Strong:       	White=2     	Black=1} 1/2-1/2

[Event "57th Biel Festival MTO 2024"]
[White "Koustav Chatterjee"]
[Black "Sethuraman,S.P."]
[Site "Biel"]
[Round "6.5"]
[Annotator "TA"]
[Result "1/2-1/2"]
[Date "2024.07.20"]
[WhiteElo "2525"]
[BlackElo "2587"]
[PlyCount "93"]
[TimeControl "60"]

{[%evp 9,93,32,45,41,37,29,25,20,43,38,56,57,68,65,69,53,58,52,74,72,87,72,83,79,82,80,82,29,29,12,79,80,127,20,11,8,8,0,0,0,0,0,0,0,0,0,0,0,0,0,0,0,0,0,71,66,84,32,62,57,94,25,20,0,0,0,0,-15,-8,-39,-2,-2,-2,-26,-24,-22,-18,-8,-17,-10,0,-29,0,-10,0,-39]} 1. d4 {[%emt 0:17:16]} Nf6 {[%emt 0:0:27]} 2. c4 {[%emt 0:0:18]} d6 {[%emt 0:2:1]} 3. Nf3 {[%emt 0:2:32]} g6 {[%emt 0:0:9]} 4. Nc3 {[%emt 0:0:11]} Bf5 {[%emt 0:0:49]} 5. Qb3 {[%emt 0:8:19]} Qc8 {[%emt 0:3:12]} 6. g3 {[%emt 0:0:59]} Bg7 {[%emt 0:2:26]} 7. Bg2 {[%emt 0:0:56]} Nc6 {[%emt 0:2:55]} 8. d5 {[%emt 0:7:13] White has an edge.} Nd8 {[%emt 0:0:12]} 9. O-O {[%emt 0:2:42]} Bh3 {[%emt 0:0:18]} 10. e4 {[%emt 0:7:6]} Bxg2 {[%emt 0:25:38]} 11. Kxg2 {[%emt 0:1:11]} O-O {[%emt 0:7:21]} 12. h3 {[%emt 0:16:43]} Nd7 {[%emt 0:8:26]} 13. Be3 {[%emt 0:3:33]} c5 {[%emt 0:3:12]} 14. Qc2 {[%emt 0:11:35]} e5 {[%emt 0:3:29]} 15. Ne1 {[%emt 0:12:32] White has more active pieces.} f6 {[%emt 0:6:6]} 16. Nd3 {[%emt 0:0:25]} Nf7 {[%emt 0:0:21]} 17. Rae1 {[%emt 0:2:38]} Re8 {[%emt 0:10:18]} 18. f4 {[%emt 0:4:46]} (18. b3 $16 )exf4 $1 $11 {[%emt 0:1:4]} 19. gxf4 {[%emt 0:0:5]} Nb6 {[%emt 0:5:11]} (19... a6 $11 )20. b3 $16 {[%emt 0:0:7]} f5 {[%emt 0:0:5] [#]} (20... Nd7 $142 )21. e5 {[%emt 0:3:37]} dxe5 $11 {[%emt 0:0:15]} 22. fxe5 {[%emt 0:0:29]} Nxe5 {[%emt 0:0:45]} 23. Nxc5 {[%emt 0:0:9]} (23. Bxc5 {is more complex.} Nbd7 24. Bd4 Qd8 25. Re3 )Nexc4 $1 {[%emt 0:3:43]} 24. bxc4 {[%emt 0:0:47]} Rxe3 {[%emt 0:0:8]} 25. Rxe3 {[%emt 0:0:9]} Qxc5 {[%emt 0:0:3]} 26. Qe2 {[%emt 0:0:56]} Rf8 {[%emt 0:4:31]} 27. Rff3 {[%emt 0:1:56]} Nxc4 {[%emt 0:11:57]} 28. Re7 {[%emt 0:1:16]} f4 {[%emt 0:3:19]} 29. Qe6+ {[%emt 0:0:4]} (29. Rxb7 $2 Ne3+ 30. Kh1 Qxc3 $19 (30... Bxc3 $2 31. Rb5 $19 ))Kh8 {[%emt 0:0:3] [#] Strongly threatening ...Ne3+.} 30. Ne4 {[%emt 0:1:34]} (30. Rxb7 $2 Ne3+ 31. Rxe3 fxe3 $19 )Ne3+ {[%emt 0:1:56]} 31. Kh2 {[%emt 0:0:4] Chess con chili.} Qxd5 {[%emt 0:4:20]} (31... Qb5 $11 {remains equal.} )32. Qxd5 $16 {[%emt 0:0:5]} Nxd5 {[%emt 0:0:3]} 33. Rd7 {[%emt 0:1:49]} (33. Rxb7 $16 Ne3 34. Ng5 (34. Rxa7 Rb8 $14 ))Ne3 $14 {[%emt 0:1:26]} 34. Ng5 $1 {[%emt 0:0:43][%cal Od7g7]} (34. Rxb7 Rc8 $11 )Rf5 {[%emt 0:0:43]} 35. Ne6 {[%emt 0:0:23]} (35. Rxb7 $16 Kg8 36. Rb8+ Rf8 (36... Bf8 $2 37. Ne6 $18 )37. Rxf8+ Bxf8 38. Ne6 (38. Rxf4 $2 Bd6 $19 ))Bf6 $11 {[%emt 0:0:17]} 36. Rxb7 {[%emt 0:0:21] Threatening mate with Rb8+.} (36. Nxf4 $2 {perishes.} Be5 37. Rxb7 (37. Kg3 $2 g5 $19 )Bxf4+ $19 (37... Rxf4 $2 38. Rxf4 Bxf4+ 39. Kg1 $19 ))Kg8 {[%emt 0:0:31]} 37. Rxa7 {[%emt 0:1:16]} (37. Rxf4 $2 {is the wrong capture.} Be5 38. Kh1 Bxf4 $19 )g5 {[%emt 0:0:40]} 38. Rf2 {[%emt 0:1:23]} Rd5 {[%emt 0:0:21]} 39. Rb7 {[%emt 0:1:12]} Rd1 {[%emt 0:0:43]} 40. Rb5 {[%emt 0:0:27]} h6 {[%emt 0:0:26]} 41. Nxf4 {[%emt 0:6:49]} gxf4 {[%emt 0:2:54]} 42. Rxf4 {[%emt 0:0:5]} Kg7 {[%emt 0:7:11]} 43. Rb7+ {[%emt 0:10:54]} Kg6 {[%emt 0:0:47] ...Be5 would now be deadly.} 44. Rb6 $1 {[%emt 0:0:4]} Rd2+ {[%emt 0:6:48]} 45. Kh1 {[%emt 0:0:24]} Rd1+ {[%emt 0:1:32]} 46. Kh2 {[%emt 0:0:5]} Rd2+ {[%emt 0:0:5]} 47. Kh1 {[%emt 0:0:4] Weighted Error Value: White=0.16 (very precise) /Black=0.13 (very precise) .  Mistake:       	White=4     	Black=3      Inaccurate:     	White=2     	Black=2      OK:         	White=12    	Black=9      Best:        	White=3     	Black=5      Strong:       	White=2     	Black=2} 1/2-1/2